fUSD/lending_fUSD_20260528
["ID","MTS","AMOUNT","RATE_DAILY","PERIOD"]
[423168931,1779900651000,-300.0,0.00038904,120]
[423168862,1779900651000,-500.0,0.00038757,7]
[423168866,1779900651000,-500.0,0.00038757,7]
[423168864,1779900651000,-500.0,0.00038757,7]
[423168882,1779900651000,-500.0,0.00038757,7]
[423168884,1779900651000,-500.0,0.00038757,7]
[423168886,1779900651000,-500.0,0.00038757,7]
[423168888,1779900651000,-500.0,0.00038757,7]
[423168890,1779900651000,-500.0,0.00038757,7]
[423168872,1779900651000,-500.0,0.00038757,7]
[423168892,1779900651000,-500.0,0.00038757,7]
[423168873,1779900651000,-500.0,0.00038757,7]
[423168876,1779900651000,-500.0,0.00038757,7]
[423168878,1779900651000,-500.0,0.00038757,7]
[423168933,1779900651000,-300.0,0.00038904,120]
[423168871,1779900651000,-500.0,0.00038757,7]
[423168905,1779900651000,-163.0,0.00038765,11]
[423168901,1779900651000,-500.0,0.00038757,7]
[423168903,1779900651000,-500.0,0.00038757,7]
[423168907,1779900651000,-157.90300786,0.00038783,2]
[423168909,1779900651000,-152161.0,0.000388,30]
[423168894,1779900651000,-500.0,0.00038757,7]
[423168896,1779900651000,-500.0,0.00038757,7]
[423168898,1779900651000,-500.0,0.00038757,7]
[423168911,1779900651000,-1524.91555555,0.00038805,30]
[423168913,1779900651000,-1524.91555555,0.00038805,30]
[423168915,1779900651000,-2317.0,0.00038864,11]
[423168917,1779900651000,-28127.54,0.0003887,14]
[423168929,1779900651000,-2000.0,0.000389,7]
[423168880,1779900651000,-500.0,0.00038757,7]
[423168980,1779900651000,-300.0,0.00038904,120]
[423168993,1779900651000,-300.0,0.00038904,120]
[423168989,1779900651000,-300.0,0.00038904,120]
[423169051,1779900651000,-10623.64,0.0003917,14]
[423169064,1779900651000,-1000.0,0.00039178,2]
[423169066,1779900651000,-1000.0,0.00039178,2]
[423169060,1779900651000,-1000.0,0.00039178,2]
[423169053,1779900651000,-161.28,0.0003917,116]
[423169057,1779900651000,-1000.0,0.00039178,2]
[423169058,1779900651000,-1000.0,0.00039178,2]
[423169062,1779900651000,-1000.0,0.00039178,2]
[423169049,1779900651000,-1221.45,0.0003917,14]
[423169070,1779900651000,-1000.0,0.00039178,2]
[423169072,1779900651000,-1000.0,0.00039178,2]
[423169080,1779900651000,-1000.0,0.00039178,2]
[423169074,1779900651000,-1000.0,0.00039178,2]
[423169047,1779900651000,-1589.0,0.00039109,11]
[423169076,1779900651000,-1000.0,0.00039178,2]
[423169078,1779900651000,-1000.0,0.00039178,2]
[423169086,1779900651000,-1000.0,0.00039178,2]
[423169084,1779900651000,-1000.0,0.00039178,2]
[423169082,1779900651000,-1000.0,0.00039178,2]
[423169095,1779900651000,-2317.0,0.00039184,11]
[423169092,1779900651000,-2317.0,0.00039184,11]
[423169090,1779900651000,-541.00133101,0.00039178,2]
[423169098,1779900651000,-221.09502107,0.00039196,120]
[423169097,1779900651000,-8408.69033204,0.00039191,7]
[423169103,1779900651000,-221.09502106,0.00039196,120]
[423169101,1779900651000,-159.17534211,0.00039196,120]
[423169105,1779900651000,-480.0,0.00039196,30]
[423168991,1779900651000,-300.0,0.00038904,120]
[423169088,1779900651000,-924.08,0.00039178,2]
[423169045,1779900651000,-163.0,0.00039104,11]
[423169107,1779900651000,-350.0,0.00039203,30]
[423169054,1779900651000,-1000.0,0.00039178,2]
[423168982,1779900651000,-300.0,0.00038904,120]
[423168995,1779900651000,-427.484109,0.00038904,120]
[423168997,1779900651000,-1549.0,0.00038904,30]
[423169011,1779900651000,-150.0,0.00038924,2]
[423168999,1779900651000,-1000.0,0.00038905,2]
[423169013,1779900651000,-275.22966363,0.00038924,2]
[423169015,1779900651000,-400.13973736,0.00038924,30]
[423169017,1779900651000,-6177.6469867,0.00038924,2]
[423169068,1779900651000,-1000.0,0.00039178,2]
[423169009,1779900651000,-244907.439856,0.00038924,2]
[423169004,1779900651000,-1000.0,0.00038905,2]
[423169021,1779900651000,-46247.84946388,0.0003894,6]
[423169007,1779900651000,-1470.16241665,0.00038905,2]
[423169006,1779900651000,-1000.0,0.00038905,2]
[423169001,1779900651000,-1000.0,0.00038905,2]
[423169022,1779900651000,-22757.11865136,0.0003897,2]
[423169029,1779900651000,-236.03,0.00039058,30]
[423169019,1779900651000,-159.59,0.00038924,30]
[423169033,1779900651000,-158.22780846,0.00039059,120]
[423169027,1779900651000,-157.90300786,0.00039057,2]
[423169026,1779900651000,-250.0,0.00039,7]
[423169025,1779900651000,-152.0,0.00039,120]
[423169031,1779900651000,-323.92,0.00039058,30]
[423169043,1779900651000,-21751.10302791,0.00039103,2]
[423169037,1779900651000,-1200.0,0.00039092,120]
[423169041,1779900651000,-137975.70983442,0.000391,30]
[423169039,1779900651000,-500.0,0.00039092,120]
[423169024,1779900651000,-234.0,0.00038989,60]
[423169023,1779900651000,-14478.30007502,0.0003897,2]
[423169035,1779900651000,-1589.0,0.00039085,11]
[423169185,1779900652000,-276.85385392,0.00039203,30]
[423169179,1779900652000,-557.5788265,0.00039203,30]
[423169178,1779900652000,-1068.11,0.00039203,30]
[423169189,1779900652000,-500.0,0.00039203,30]
[423169187,1779900652000,-500.0,0.00039203,30]
[423169193,1779900652000,-151.0,0.00039203,30]
[423169191,1779900652000,-6690.945918,0.00039203,30]
[423169175,1779900652000,-500.0,0.00039203,30]
[423169173,1779900652000,-151.0,0.00039203,30]
[423169171,1779900652000,-174.61919144,0.00039203,30]
[423169183,1779900652000,-1672.7364795,0.00039203,30]
[423169181,1779900652000,-178.42522448,0.00039203,30]
[423169209,1779900652000,-151.0,0.00039203,30]
[423169199,1779900652000,-578.20924308,0.00039203,30]
[423169201,1779900652000,-185.02695778,0.00039203,30]
[423169197,1779900652000,-1107.63007,0.00039203,30]
[423169215,1779900652000,-500.0,0.00039203,30]
[423169217,1779900652000,-1798.80895522,0.00039203,30]
[423169205,1779900652000,-500.0,0.00039203,30]
[423169219,1779900652000,-500.0,0.00039203,30]
[423169203,1779900652000,-1734.62772924,0.00039203,30]
[423169221,1779900652000,-7195.23582089,0.00039203,30]
[423169207,1779900652000,-6938.51091696,0.00039203,30]
[423169223,1779900652000,-152.66523235,0.00039203,30]
[423169169,1779900652000,-151.0,0.00039203,30]
[423169195,1779900652000,-500.0,0.00039203,30]
[423169160,1779900652000,-1613.0535,0.00039203,30]
[423169134,1779900652000,-500.0,0.00039203,30]
[423169162,1779900652000,-500.0,0.00039203,30]
[423169211,1779900652000,-1148.61238259,0.00039203,30]
[423169109,1779900652000,-500.0,0.00039203,30]
[423169110,1779900652000,-151.0,0.00039203,30]
[423169116,1779900652000,-500.0,0.00039203,30]
[423169114,1779900652000,-160.0,0.00039203,30]
[423169120,1779900652000,-6000.0,0.00039203,30]
[423169118,1779900652000,-500.0,0.00039203,30]
[423169122,1779900652000,-1500.0,0.00039203,30]
[423169140,1779900652000,-500.0,0.00039203,30]
[423169147,1779900652000,-500.0,0.00039203,30]
[423169136,1779900652000,-1555.5,0.00039203,30]
[423169144,1779900652000,-6222.0,0.00039203,30]
[423169130,1779900652000,-165.92,0.00039203,30]
[423169126,1779900652000,-500.0,0.00039203,30]
[423169132,1779900652000,-518.5,0.00039203,30]
[423169138,1779900652000,-520.0,0.00039203,30]
[423169124,1779900652000,-273.34052324,0.00039203,30]
[423169142,1779900652000,-151.0,0.00039203,30]
[423169146,1779900652000,-3535.69145908,0.00039203,30]
[423169128,1779900652000,-151.0,0.00039203,30]
[423169153,1779900652000,-537.6845,0.00039203,30]
[423169149,1779900652000,-151.0,0.00039203,30]
[423169151,1779900652000,-1030.0,0.00039203,30]
[423169164,1779900652000,-156.587,0.00039203,30]
[423169158,1779900652000,-500.0,0.00039203,30]
[423169155,1779900652000,-172.05904,0.00039203,30]
[423169167,1779900652000,-6452.214,0.00039203,30]
[423169165,1779900652000,-175.39793187,0.00039203,30]
[423169225,1779900652000,-151.0,0.00039203,30]
[423169233,1779900652000,-500.0,0.00039203,30]
[423169227,1779900652000,-621.78829552,0.00039203,30]
[423169303,1779900652000,-1481.2378076,0.00039203,30]
[423169305,1779900652000,-588.87858603,0.00039203,30]
[423169314,1779900652000,-500.0,0.00039203,30]
[423169316,1779900652000,-500.0,0.00039203,30]
[423169309,1779900652000,-1076.95802925,0.00039203,30]
[423169307,1779900652000,-500.0,0.00039203,30]
[423169311,1779900652000,-500.0,0.00039203,30]
[423169320,1779900652000,-500.0,0.00039203,30]
[423169318,1779900652000,-406.29556674,0.00039203,30]
[423169322,1779900652000,-500.0,0.00039203,30]
[423169324,1779900652000,-500.0,0.00039203,30]
[423169337,1779900652000,-5800.0,0.000393,14]
[423169301,1779900652000,-500.0,0.00039203,30]
[423169335,1779900652000,-4957.93188675,0.00039299,14]
[423169328,1779900652000,-1589.0,0.00039249,11]
[423169345,1779900652000,-150.0,0.00039315,30]
[423169330,1779900652000,-376.03,0.00039269,60]
[423169339,1779900652000,-11610.85,0.000393,2]
[423169343,1779900652000,-192.51812993,0.00039315,120]
[423169333,1779900652000,-2317.0,0.00039293,11]
[423169347,1779900652000,-1544.0,0.00039315,30]
[423169213,1779900652000,-599.60298507,0.00039203,30]
[423169349,1779900652000,-1544.0,0.00039315,30]
[423169351,1779900652000,-1544.0,0.00039315,30]
[423169355,1779900652000,-1544.0,0.00039315,30]
[423169353,1779900652000,-1544.0,0.00039315,30]
[423169326,1779900652000,-236.41594092,0.00039203,30]
[423169299,1779900652000,-500.0,0.00039203,30]
[423169341,1779900652000,-151.0,0.000393,120]
[423169277,1779900652000,-500.0,0.00039203,30]
[423169296,1779900652000,-1428.38747117,0.00039203,30]
[423169231,1779900652000,-1191.11104074,0.00039203,30]
[423169242,1779900652000,-1934.38338736,0.00039203,30]
[423169240,1779900652000,-151.0,0.00039203,30]
[423169235,1779900652000,-500.0,0.00039203,30]
[423169237,1779900652000,-1621.90850596,0.00039203,30]
[423169246,1779900652000,-1235.18214925,0.00039203,30]
[423169249,1779900652000,-500.0,0.00039203,30]
[423169244,1779900652000,-644.79446245,0.00039203,30]
[423169251,1779900652000,-500.0,0.00039203,30]
[423169253,1779900652000,-2005.9555727,0.00039203,30]
[423169266,1779900652000,-1280.88388877,0.00039203,30]
[423169268,1779900652000,-500.0,0.00039203,30]
[423169229,1779900652000,-1865.36488656,0.00039203,30]
[423169263,1779900652000,-151.0,0.00039203,30]
[423169271,1779900652000,-2080.17592889,0.00039203,30]
[423169292,1779900652000,-500.0,0.00039203,30]
[423169279,1779900652000,-500.0,0.00039203,30]
[423169275,1779900652000,-1328.27659266,0.00039203,30]
[423169288,1779900652000,-500.0,0.00039203,30]
[423169281,1779900652000,-2157.14243826,0.00039203,30]
[423169283,1779900652000,-719.04747942,0.00039203,30]
[423169286,1779900652000,-1377.42282658,0.00039203,30]
[423169273,1779900652000,-693.39197629,0.00039203,30]
[423169265,1779900652000,-668.65185756,0.00039203,30]
[423169290,1779900652000,-1299.03083609,0.00039203,30]
[423169294,1779900652000,-745.65223615,0.00039203,30]
[423169403,1779900653000,-1544.0,0.00039315,30]
[423169422,1779900653000,-881.93281491,0.00039315,30]
[423169412,1779900653000,-1544.0,0.00039315,30]
[423169418,1779900653000,-1544.0,0.00039315,30]
[423169410,1779900653000,-1544.0,0.00039315,30]
[423169414,1779900653000,-1544.0,0.00039315,30]
[423169408,1779900653000,-1544.0,0.00039315,30]
[423169405,1779900653000,-154.0,0.00039315,30]
[423169416,1779900653000,-1544.0,0.00039315,30]
[423169420,1779900653000,-1544.0,0.00039315,30]
[423169434,1779900653000,-151.0,0.00039315,30]
[423169432,1779900653000,-151.0,0.00039315,30]
[423169430,1779900653000,-173.5410728,0.00039315,30]
[423169426,1779900653000,-151.0,0.00039315,30]
[423169428,1779900653000,-151.0,0.00039315,30]
[423169438,1779900653000,-151.0,0.00039315,30]
[423169440,1779900653000,-151.0,0.00039315,30]
[423169442,1779900653000,-245.0,0.00039315,30]
[423169436,1779900653000,-151.0,0.00039315,30]
[423169446,1779900653000,-151.0,0.00039315,30]
[423169407,1779900653000,-248.48877183,0.00039315,30]
[423169424,1779900653000,-1544.0,0.00039315,30]
[423169401,1779900653000,-1544.0,0.00039315,30]
[423169375,1779900653000,-1544.0,0.00039315,30]
[423169398,1779900653000,-1544.0,0.00039315,30]
[423169444,1779900653000,-151.0,0.00039315,30]
[423169359,1779900653000,-1544.0,0.00039315,30]
[423169357,1779900653000,-1544.0,0.00039315,30]
[423169365,1779900653000,-1544.0,0.00039315,30]
[423169363,1779900653000,-1544.0,0.00039315,30]
[423169361,1779900653000,-1544.0,0.00039315,30]
[423169367,1779900653000,-1544.0,0.00039315,30]
[423169369,1779900653000,-1544.0,0.00039315,30]
[423169372,1779900653000,-1544.0,0.00039315,30]
[423169373,1779900653000,-1544.0,0.00039315,30]
[423169384,1779900653000,-1544.0,0.00039315,30]
[423169386,1779900653000,-1544.0,0.00039315,30]
[423169378,1779900653000,-1544.0,0.00039315,30]
[423169380,1779900653000,-1544.0,0.00039315,30]
[423169388,1779900653000,-1544.0,0.00039315,30]
[423169392,1779900653000,-1544.0,0.00039315,30]
[423169390,1779900653000,-1544.0,0.00039315,30]
[423169396,1779900653000,-1544.0,0.00039315,30]
[423169394,1779900653000,-1544.0,0.00039315,30]
[423169395,1779900653000,-1544.0,0.00039315,30]
[423169397,1779900653000,-1544.0,0.00039315,30]
[423169399,1779900653000,-1544.0,0.00039315,30]
[423169458,1779900653000,-152.0,0.00039315,30]
[423169382,1779900653000,-1544.0,0.00039315,30]
[423169460,1779900653000,-152.0,0.00039315,30]
[423169512,1779900653000,-214.96862186,0.00039315,30]
[423169515,1779900653000,-2317.0,0.00039324,11]
[423169523,1779900653000,-823.0,0.00039333,30]
[423169517,1779900653000,-157.90300786,0.00039331,2]
[423169520,1779900653000,-8408.69033204,0.00039333,7]
[423169532,1779900653000,-823.0,0.00039333,30]
[423169529,1779900653000,-823.0,0.00039333,30]
[423169526,1779900653000,-823.0,0.00039333,30]
[423169535,1779900653000,-823.0,0.00039333,30]
[423169573,1779900653000,-800.0,0.00039403,14]
[423169547,1779900653000,-411.0,0.00039361,2]
[423169541,1779900653000,-200.0,0.0003936,2]
[423169538,1779900653000,-152.64908367,0.00039359,120]
[423169553,1779900653000,-3594.94,0.00039375,2]
[423169544,1779900653000,-2024.2748,0.0003936,112]
[423169566,1779900653000,-800.0,0.00039403,14]
[423169556,1779900653000,-800.0,0.00039403,14]
[423169570,1779900653000,-800.0,0.00039403,14]
[423169559,1779900653000,-800.0,0.00039403,14]
[423169563,1779900653000,-800.0,0.00039403,14]
[423169448,1779900653000,-151.0,0.00039315,30]
[423169506,1779900653000,-151.0,0.00039315,30]
[423169502,1779900653000,-151.0,0.00039315,30]
[423169550,1779900653000,-330.0,0.0003937,60]
[423169499,1779900653000,-151.0,0.00039315,30]
[423169464,1779900653000,-152.0,0.00039315,30]
[423169509,1779900653000,-151.0,0.00039315,30]
[423169462,1779900653000,-152.0,0.00039315,30]
[423169466,1779900653000,-152.0,0.00039315,30]
[423169452,1779900653000,-151.0,0.00039315,30]
[423169454,1779900653000,-152.0,0.00039315,30]
[423169450,1779900653000,-151.0,0.00039315,30]
[423169456,1779900653000,-152.0,0.00039315,30]
[423169473,1779900653000,-152.0,0.00039315,30]
[423169472,1779900653000,-152.0,0.00039315,30]
[423169470,1779900653000,-152.0,0.00039315,30]
[423169468,1779900653000,-152.0,0.00039315,30]
[423169477,1779900653000,-152.0,0.00039315,30]
[423169489,1779900653000,-151.0,0.00039315,30]
[423169491,1779900653000,-151.0,0.00039315,30]
[423169493,1779900653000,-151.0,0.00039315,30]
[423169475,1779900653000,-152.0,0.00039315,30]
[423169495,1779900653000,-151.0,0.00039315,30]
[423169485,1779900653000,-151.0,0.00039315,30]
[423169479,1779900653000,-253.38749672,0.00039315,30]
[423169481,1779900653000,-152.0,0.00039315,30]
[423169487,1779900653000,-151.0,0.00039315,30]
[423169483,1779900653000,-151.0,0.00039315,30]
[423169674,1779900654000,-1100.0,0.00039589,30]
[423169662,1779900654000,-1100.0,0.00039589,30]
[423169657,1779900654000,-1100.0,0.00039589,30]
[423169645,1779900654000,-2317.0,0.00039546,11]
[423169653,1779900654000,-314.35,0.00039586,120]
[423169651,1779900654000,-434.23603839,0.0003958,11]
[423169647,1779900654000,-258.63753108,0.00039558,2]
[423169675,1779900654000,-1100.0,0.00039589,30]
[423169655,1779900654000,-1100.0,0.00039589,30]
[423169664,1779900654000,-1100.0,0.00039589,30]
[423169697,1779900654000,-1100.0,0.00039589,30]
[423169667,1779900654000,-1100.0,0.00039589,30]
[423169677,1779900654000,-1100.0,0.00039589,30]
[423169669,1779900654000,-1100.0,0.00039589,30]
[423169679,1779900654000,-1100.0,0.00039589,30]
[423169682,1779900654000,-1100.0,0.00039589,30]
[423169683,1779900654000,-1100.0,0.00039589,30]
[423169685,1779900654000,-1100.0,0.00039589,30]
[423169694,1779900654000,-1100.0,0.00039589,30]
[423169696,1779900654000,-1100.0,0.00039589,30]
[423169700,1779900654000,-1100.0,0.00039589,30]
[423169649,1779900654000,-250.46341063,0.00039559,120]
[423169671,1779900654000,-1100.0,0.00039589,30]
[423169638,1779900654000,-411.0,0.00039514,2]
[423169579,1779900654000,-800.0,0.00039403,14]
[423169643,1779900654000,-314.35,0.00039536,120]
[423169576,1779900654000,-800.0,0.00039403,14]
[423169698,1779900654000,-1100.0,0.00039589,30]
[423169583,1779900654000,-2024.27479,0.0003941,113]
[423169586,1779900654000,-163.0,0.00039418,11]
[423169590,1779900654000,-395.53481626,0.00039424,120]
[423169592,1779900654000,-273.93,0.00039425,120]
[423169595,1779900654000,-200.0,0.00039438,20]
[423169599,1779900654000,-1549.0,0.00039452,30]
[423169603,1779900654000,-411.0,0.00039466,2]
[423169607,1779900654000,-262.63931446,0.0003947,120]
[423169610,1779900654000,-273.93,0.00039475,120]
[423169612,1779900654000,-500.0,0.00039483,60]
[423169614,1779900654000,-700.0,0.00039483,60]
[423169625,1779900654000,-2328.30927666,0.00039502,30]
[423169631,1779900654000,-266.05748578,0.00039505,2]
[423169618,1779900654000,-2317.0,0.00039486,11]
[423169622,1779900654000,-2000.0,0.000395,75]
[423169616,1779900654000,-314.35,0.00039486,120]
[423169627,1779900654000,-5401.04024726,0.00039505,2]
[423169629,1779900654000,-8295.58426003,0.00039505,2]
[423169620,1779900654000,-1170.18,0.00039488,120]
[423169634,1779900654000,-2584.0,0.00039514,5]
[423169636,1779900654000,-2904.0,0.00039514,5]
[423169640,1779900654000,-273.95726258,0.00039525,120]
[423169701,1779900654000,-1100.0,0.00039589,30]
[423169660,1779900654000,-1100.0,0.00039589,30]
[423169703,1779900654000,-1100.0,0.00039589,30]
[423169758,1779900654000,-50000.0,0.00039604,56]
[423169760,1779900654000,-50000.0,0.00039604,57]
[423169762,1779900654000,-4819.98504121,0.00039604,120]
[423169764,1779900654000,-1000.0,0.00039604,120]
[423169755,1779900654000,-50000.0,0.00039604,54]
[423169769,1779900654000,-1000.0,0.00039604,120]
[423169766,1779900654000,-1000.0,0.00039604,120]
[423169771,1779900654000,-1000.0,0.00039604,120]
[423169773,1779900654000,-1000.0,0.00039604,120]
[423169775,1779900654000,-1000.0,0.00039604,120]
[423169777,1779900654000,-1000.0,0.00039604,120]
[423169781,1779900654000,-500.0,0.00039604,120]
[423169793,1779900654000,-248.09677701,0.00039604,120]
[423169783,1779900654000,-500.0,0.00039604,120]
[423169785,1779900654000,-1000.0,0.00039604,120]
[423169791,1779900654000,-1000.0,0.00039604,120]
[423169787,1779900654000,-500.0,0.00039604,120]
[423169795,1779900654000,-1000.0,0.00039604,120]
[423169797,1779900654000,-1000.0,0.00039604,120]
[423169799,1779900654000,-1000.0,0.00039604,120]
[423169789,1779900654000,-500.0,0.00039604,120]
[423169801,1779900654000,-1000.0,0.00039604,120]
[423169699,1779900654000,-1100.0,0.00039589,30]
[423169756,1779900654000,-50000.0,0.00039604,55]
[423169750,1779900654000,-273.228731,0.000396,10]
[423169779,1779900654000,-1000.0,0.00039604,120]
[423169746,1779900654000,-2375.0,0.00039595,5]
[423169690,1779900654000,-1100.0,0.00039589,30]
[423169752,1779900654000,-200.0,0.000396,14]
[423169688,1779900654000,-1100.0,0.00039589,30]
[423169692,1779900654000,-1100.0,0.00039589,30]
[423169708,1779900654000,-1100.0,0.00039589,30]
[423169710,1779900654000,-1100.0,0.00039589,30]
[423169712,1779900654000,-1100.0,0.00039589,30]
[423169715,1779900654000,-1100.0,0.00039589,30]
[423169713,1779900654000,-1100.0,0.00039589,30]
[423169721,1779900654000,-1100.0,0.00039589,30]
[423169717,1779900654000,-1100.0,0.00039589,30]
[423169705,1779900654000,-1100.0,0.00039589,30]
[423169725,1779900654000,-1100.0,0.00039589,30]
[423169723,1779900654000,-1100.0,0.00039589,30]
[423169748,1779900654000,-1727.13067432,0.000396,120]
[423169739,1779900654000,-1100.0,0.00039589,30]
[423169732,1779900654000,-1100.0,0.00039589,30]
[423169737,1779900654000,-1100.0,0.00039589,30]
[423169743,1779900654000,-557.0,0.00039589,30]
[423169741,1779900654000,-1100.0,0.00039589,30]
[423169731,1779900654000,-1100.0,0.00039589,30]
[423169729,1779900654000,-1100.0,0.00039589,30]
[423169727,1779900654000,-1100.0,0.00039589,30]
[423169719,1779900654000,-1100.0,0.00039589,30]
[423169734,1779900654000,-1100.0,0.00039589,30]
[423169835,1779900655000,-1000.0,0.00039604,120]
[423169840,1779900655000,-800.0,0.00039604,120]
[423169851,1779900655000,-800.0,0.00039604,120]
[423169849,1779900655000,-800.0,0.00039604,120]
[423169842,1779900655000,-800.0,0.00039604,120]
[423169855,1779900655000,-800.0,0.00039604,120]
[423169844,1779900655000,-800.0,0.00039604,120]
[423169846,1779900655000,-800.0,0.00039604,120]
[423169857,1779900655000,-800.0,0.00039604,120]
[423169859,1779900655000,-800.0,0.00039604,120]
[423169837,1779900655000,-800.0,0.00039604,120]
[423169853,1779900655000,-800.0,0.00039604,120]
[423169833,1779900655000,-1000.0,0.00039604,120]
[423169806,1779900655000,-1000.0,0.00039604,120]
[423169829,1779900655000,-1000.0,0.00039604,120]
[423169827,1779900655000,-1000.0,0.00039604,120]
[423169825,1779900655000,-1000.0,0.00039604,120]
[423169823,1779900655000,-1000.0,0.00039604,120]
[423169810,1779900655000,-1000.0,0.00039604,120]
[423169816,1779900655000,-1000.0,0.00039604,120]
[423169818,1779900655000,-1000.0,0.00039604,120]
[423169808,1779900655000,-1000.0,0.00039604,120]
[423169812,1779900655000,-1000.0,0.00039604,120]
[423169814,1779900655000,-1000.0,0.00039604,120]
[423169821,1779900655000,-1000.0,0.00039604,120]
[423169803,1779900655000,-1000.0,0.00039604,120]
[423169861,1779900655000,-800.0,0.00039604,120]
[423169831,1779900655000,-1000.0,0.00039604,120]
[423169863,1779900655000,-800.0,0.00039604,120]
[423169894,1779900655000,-14043.4613825,0.00039605,24]
[423169875,1779900655000,-800.0,0.00039604,120]
[423169971,1779900655000,-10533.51,0.0001253,2]
[423169869,1779900655000,-800.0,0.00039604,120]
[423169961,1779900655000,-31684.9317,0.00039605,30]
[423169951,1779900655000,-484.76763572,0.00035626,2]
[423169958,1779900655000,-41965.9449915,0.00039605,30]
[423169955,1779900655000,-325116.05892797,0.00039605,30]
[423169953,1779900655000,-580.80658839,0.000374,30]
[423169940,1779900655000,-963.76004824,0.000254,2]
[423169937,1779900655000,-428.08595836,0.000254,2]
[423169948,1779900655000,-300.0,0.00035626,2]
[423169946,1779900655000,-200.0,0.0003,2]
[423169944,1779900655000,-540.58507527,0.000254,2]
[423169899,1779900655000,-339.0,0.00039605,120]
[423169901,1779900655000,-4698165.08116093,0.00039605,30]
[423169969,1779900655000,-520.1094496,0.0001253,2]
[423169892,1779900655000,-421.90145406,0.00039604,120]
[423169895,1779900655000,-157.90300786,0.00039605,2]
[423169865,1779900655000,-800.0,0.00039604,120]
[423169871,1779900655000,-800.0,0.00039604,120]
[423169873,1779900655000,-800.0,0.00039604,120]
[423169879,1779900655000,-500.0,0.00039604,120]
[423169877,1779900655000,-808.89277437,0.00039604,120]
[423169867,1779900655000,-800.0,0.00039604,120]
[423169886,1779900655000,-500.0,0.00039604,120]
[423169883,1779900655000,-500.0,0.00039604,120]
[423169888,1779900655000,-500.0,0.00039604,120]
[423169890,1779900655000,-500.0,0.00039604,120]
[423169897,1779900655000,-364.0,0.00039605,120]
[423169881,1779900655000,-500.0,0.00039604,120]
[423170442,1779900727000,214.0,7.945e-05,2]
[423170443,1779900831000,-1498.22407538,0.00012182,2]
[423170444,1779900851000,-809.62,0.00012182,2]
[423170445,1779900871000,-190.53563043,0.00012182,2]
[423170446,1779900924000,-196.3094374,0.00012182,2]
[423170447,1779900978000,-510.3,0.00012002,2]
[423170450,1779900979000,-239.128,0.00012182,2]
[423170448,1779900979000,-200.0,0.00012002,2]
[423170449,1779900979000,-1074.02092462,0.00012182,2]
[423170452,1779900979000,-593.58,0.00012229,2]
[423170451,1779900979000,-3614.86,0.00012229,2]
[423170458,1779900979000,-67052.35018742,0.0001233,2]
[423170456,1779900979000,-300.0,0.00012329,2]
[423170453,1779900979000,-150.0,0.00012303,2]
[423170457,1779900979000,-300.0,0.00012329,2]
[423170455,1779900979000,-1200.0,0.00012329,2]
[423170454,1779900979000,-276.06088796,0.00012325,2]
[423170459,1779901031000,-809.04887872,0.0001233,2]
[423170460,1779901084000,-150.0,0.00012329,2]
[423170464,1779901138000,629.2,0.00027624,120]
[423170463,1779901138000,-210.07,0.00012329,2]
[423170465,1779901158000,-258.73084032,0.0001233,2]
[423170466,1779901211000,-10753.5784189,0.0001233,2]
[423170470,1779901318000,298.91,6.329e-05,2]
[423170469,1779901318000,298.91,6.013e-05,2]